Cogmind - Beta 13 @@@ ROGUE MODE // 2024.04.16 @ 23:35:39 Player: AntinDisguise Result: Destroyed by L-31 Rogue with Katana Performance ------------- Evolutions (1) 500 Regions Visited (3) 600 Robots Destroyed (54) 270 Value Destroyed (1236) 1236 Prototype IDs (4) 80 Alien Tech Used (0) 0 Bonus (11) 11 TOTAL SCORE: 2697 Bonus ------- High Alert Combat Kills 11 Cogmind --------- Core Integrity 0/400 Matter 300/300 Energy 71/100 System Corruption 1% Temperature Warning (309) Movement Core (750) Ox14 Location -9/Mines Parts ------- > --- POWER (2) -------- (None) > --- PROPULSION (2) --- (None) > --- UTILITY (3) ------ High-capacity Storage Unit Structural Scanner > --- WEAPON (2) ------- Field Laser > --- INVENTORY (20) --- Light Deuterium Engine Light Treads Light Treads Light Treads Light Treads Light Treads Light Treads Light Treads Light Treads Light Treads Light Treads Improved Treads Huge Storage Unit Field Laser Field Laser Rocket Launcher Rocket Launcher Maul Peak State ------------ > --- POWER ------------ Cooled Ion Engine Cooled Ion Engine > --- PROPULSION ------- Compact Wheel Compact Wheel > --- UTILITY ---------- High-capacity Storage Unit Terrain Scanner Hardened Light Armor Plating > --- WEAPON ----------- Improved Assault Rifle Improved Assault Rifle > --- INVENTORY -------- Light Treads Light Treads Light Treads Light Treads Light Treads Light Treads Light Treads Light Treads Light Treads Light Treads Huge Storage Unit Improved Assault Rifle Improved Assault Rifle Improved Assault Rifle EMP Blaster [Rating: 20] Favorites ----------- Power Cooled Ion Engine Engine Cooled Ion Engine Propulsion Compact Wheel Treads Light Treads Wheel Compact Wheel Utility High-capacity Storage Unit Device Terrain Scanner Storage High-capacity Storage Unit Protection Hardened Light Armor Plating Weapon Improved Assault Rifle Energy Gun Field Laser Energy Cannon Advanced Beam Cannon Ballistic Gun Improved Assault Rifle Ballistic Cannon Light Cannon Build | -11 -10 -9 -9 ------- Run | Yrd Mat Mat Min Slots Evolved 2 | . . 2 . Power 1 | . . 1 . Propulsion . | . . . . Utility 1 | . . 1 . Weapon . | . . . . Parts Attached 40 | 6 5 29 . Power 11 | 1 1 9 . Engine 11 | 1 1 9 . Core . | . . . . Reactor . | . . . . Propulsion 6 | 2 1 3 . Treads 2 | . . 2 . Leg . | . . . . Wheel 4 | 2 1 1 . Hover . | . . . . Flight . | . . . . Utility 10 | 1 2 7 . Device 2 | . . 2 . Storage 4 | 1 1 2 . Processor . | . . . . Hackware . | . . . . Protection 4 | . 1 3 . Artifact . | . . . . Weapon 13 | 2 1 10 . Energy Gun 3 | . 1 2 . Energy Cannon 1 | . . 1 . Ballistic Gun 7 | 2 . 5 . Ballistic Cannon 2 | . . 2 . Launcher . | . . . . Special Weapon . | . . . . Impact Weapon . | . . . . Slashing Weapon . | . . . . Piercing Weapon . | . . . . Special Melee Weapon . | . . . . Unidentified Prototypes 4 | . 1 3 . Parts Lost 19 | . 2 14 3 Power 6 | . . 4 2 Propulsion 4 | . 1 2 1 Utility 3 | . . 3 . Weapon 6 | . 1 5 . Highest Loss Streak 5 | . 2 5 3 To Critical Strikes . | . . . . Average Slot Usage (%) 88 | . 97 87 66 Engine 19 | . 14 20 22 Treads 9 | . . 11 . Wheel 10 | . 27 8 . Device 5 | . . 6 11 Storage 11 | . 14 11 11 Protection 8 | . 13 8 . Energy Gun 2 | . 1 2 22 Energy Cannon 3 | . . 4 . Ballistic Gun 15 | . 26 14 . Naked Turns . | . . . . Heaviest Build 68 | 14 37 68 . Greatest Support 40 | 32 32 40 . Greatest Overweight (x) 3 | . 2 3 . Average Overweight (x) 1 | . . 1 . Largest Inventory Capacity 25 | 8 15 25 20 Average Capacity 17 | 7 12 18 20 Most Carried 20 | 3 11 20 18 Average Carried 15 | 2 7 16 18 Final Capacity 20 | 8 15 20 20 Final Carried 18 | 3 10 18 18 Class Distribution -------------------- 91% | Mutant 8% | Scavenger-Mutant Dominant Class ---------------- Mutant | -10/Materials Mutant | -9/Materials Mutant | -9/Mines Resources | -11 -10 -9 -9 ----------- Run | Yrd Mat Mat Min Matter Collected 1307 | 266 156 885 . Remotely . | . . . . Salvage Created 1978 | 93 196 1689 . Parts 124 | 5 14 105 . Haulers Intercepted 4 | . . 4 . Recyclers Shooed 3 | 1 . 2 . Parts Field Recycled . | . . . . Retrieved Matter . | . . . . Parts Self-Destructed . | . . . . Prevented . | . . . . Kills | -11 -10 -9 -9 ------- Run | Yrd Mat Mat Min Combat Hostiles Destroyed 35 | . 8 27 . Guns 25 | . 8 17 . Cannons 9 | . . 9 . Classes Destroyed 10 | 2 2 6 . Worker 4 | . . 4 . Builder 1 | . . 1 . Tunneler 1 | 1 . . . Hauler 4 | . . 4 . Recycler 4 | 1 . 3 . Operator 2 | . . 2 . Watcher 3 | . . 3 . Swarmer 9 | . 5 4 . Grunt 18 | . 3 15 . Sentry 8 | . . 8 . Best Kill Streak 6 | 2 3 6 . Combat Bots Only 5 | . 3 5 . Max Kills in Single Turn 2 | 1 1 2 . Gunslinging . | . . . . Exploded . | . . . . Melee . | . . . . Uniques/NPCs Destroyed . | . . . . Combat | -11 -10 -9 -9 -------- Run | Yrd Mat Mat Min Hostile Shots Fired 318 | . 73 232 13 Missed 78 | . 20 57 1 Damage Taken 2835 | . 462 2132 241 Core 508 | . 75 335 98 Absorbed by Shields . | . . . . Redirected to Shielding 7 | . . 7 . Core Remaining (%) 85 | 100 70 . . Volleys Fired 174 | 4 30 135 5 Largest 2 | 2 2 2 2 Hottest 126 | 40 40 91 126 Shots Fired 322 | 8 56 249 9 Gun 260 | 8 56 187 9 Cannon 62 | . . 62 . Launcher . | . . . . Special . | . . . . Kinetic 235 | 8 56 171 . Thermal 87 | . . 78 9 Explosive . | . . . . Electromagnetic . | . . . . Robot Hit Streak 14 | 4 4 14 4 Robot Miss Streak 8 | 1 8 5 1 Penetration Max . | . . . . Secondary Targets 4 | . 3 1 . Max Gunslinging Chain 1 | . 1 1 . Shots Hit Robots 193 | 5 27 154 7 Core Hits 73 | 3 10 59 1 Critical Kills 1 | . . 1 . Critical Parts Destroyed 2 | . 1 1 . Critical Strikes 4 | . 1 3 . Meltdown 1 | . . 1 . Destroy 2 | . 1 1 . Blast 1 | . . 1 . Melee Attacks . | . . . . Impact . | . . . . Slashing . | . . . . Piercing . | . . . . Sneak Attacks . | . . . . Combat Hostiles . | . . . . Follow-up Attacks . | . . . . Damage Inflicted 2963 | 74 336 2435 118 Guns 2175 | 74 336 1647 118 Cannons 788 | . . 788 . Explosions . | . . . . Melee . | . . . . Ramming . | . . . . Kinetic 2047 | 74 336 1637 . Thermal 916 | . . 798 118 Explosive . | . . . . Electromagnetic . | . . . . Impact . | . . . . Slashing . | . . . . Piercing . | . . . . Highest Corruption 1 | . . 1 1 Average Corruption 1 | . . 1 1 Corruption Purged . | . . . . Corruption Blocked . | . . . . Effects 22 | . . 22 . Message Errors 4 | . . 4 . Matter Fused 3 | . . 3 . Heat Flow Errors 4 | . . 4 . Energy Discharges 5 | . . 5 . Parts Rejected 1 | . . 1 . Parts Fused 2 | . . 2 . Data Loss (minor) 2 | . . 2 . Misfires 1 | . . 1 . Overload Shots . | . . . . Overflow Damage 13 | . . 13 . Projectiles 13 | . . 13 . Explosions . | . . . . Melee . | . . . . Knockbacks 1 | . . 1 . Impact . | . . . . Kinetic 1 | . . 1 . Secondary . | . . . . Self-Inflicted Damage . | . . . . Shots . | . . . . Rammed . | . . . . Targets Rammed . | . . . . Kicked . | . . . . Crushed . | . . . . Highest Temperature 427 | . 8 427 309 Average Temperature 95 | . 3 95 189 Received Heat Transfer 927 | . 108 777 42 Effects 2 | . . 2 . Shutdowns 1 | . . 1 . Matter Decay 1 | . . 1 . Siege Activations . | . . . . Robots Corrupted . | . . . . Combat Hostiles . | . . . . Parts Fried . | . . . . Impact Corruptions . | . . . . Robots Melted 1 | . . 1 . Combat Hostiles 1 | . . 1 . Parts Melted 1 | . . 1 . Heat Transferred 1886 | . . 1627 259 Parts Sabotaged . | . . . . Parts Stolen . | . . . . Parts Stripped . | . . . . Power Chain Reactions . | . . . . Alert | -11 -10 -9 -9 ------- Run | Yrd Mat Mat Min Peak Influence 415 | 10 243 415 145 Initial 145 | . 6 102 145 Average 242 | 2 142 262 128 Maximum Alert Level 2 | . 1 2 . Low Security (%) 33 | 100 77 25 100 Level 1 64 | . 22 71 . Level 2 2 | . . 2 . Level 3 . | . . . . Level 4 . | . . . . Level 5 . | . . . . High Security . | . . . . Max Security . | . . . . Squads Dispatched 7 | . 2 5 . Investigation 2 | . . 2 . Extermination . | . . . . Reinforcement 5 | . 2 3 . Assault . | . . . . Garrison . | . . . . Intercept . | . . . . Searches Triggered . | . . . . Construction Impeded . | . . . . Haulers Reinforced . | . . . . Active Scanning Responses . | . . . . Cargo Convoy Interrupts . | . . . . Stealth | -11 -10 -9 -9 --------- Run | Yrd Mat Mat Min Distress Signals 8 | . 1 7 . Communications Jammed . | . . . . Distress Signals . | . . . . Times Spotted 65 | . 12 51 2 Peak Tracking Total 5 | . 5 5 2 Tactical Retreats 7 | . 1 6 . Traps | -11 -10 -9 -9 ------- Run | Yrd Mat Mat Min Traps Triggered 2 | . . 2 . Indirectly . | . . . . Trap Hack Attempts . | . . . . Triggered . | . . . . Disarmed . | . . . . Reprogrammed . | . . . . Reused . | . . . . Traps Extracted . | . . . . Installed . | . . . . Triggered . | . . . . Machines | -11 -10 -9 -9 ---------- Run | Yrd Mat Mat Min Machines Disabled 2 | . . 2 . Max in Single Turn 1 | . . 1 . Machines Repaired . | . . . . Machines Dismantled . | . . . . Machines Sabotaged . | . . . . Overloaded Fab Kills . | . . . . Hacking | -11 -10 -9 -9 --------- Run | Yrd Mat Mat Min Machines Accessed 4 | . 3 1 . Terminals 3 | . 2 1 . Fabricators . | . . . . Repair Stations . | . . . . Recycling Units 1 | . 1 . . Scanalyzers . | . . . . Garrison Access . | . . . . Total Hacks 9 | . 6 3 . Successful 3 | . 3 . . Failed 6 | . 3 3 . Catastrophic . | . . . . Database Lockouts . | . . . . Manual . | . . . . Terminals 8 | . 5 3 . Fabricators . | . . . . Repair Stations . | . . . . Recycling Units 1 | . 1 . . Scanalyzers . | . . . . Garrison Access . | . . . . Terminal Hacks 2 | . 2 . . Branch Access Points 1 | . 1 . . Zone Layout 1 | . 1 . . Fabricator Hacks . | . . . . Repair Station Hacks . | . . . . Recycling Unit Hacks 1 | . 1 . . Retrieve Components 1 | . 1 . . Scanalyzer . | . . . . Garrison Access Hacks . | . . . . Unauthorized Hacks . | . . . . Terminals . | . . . . Fabricators . | . . . . Repair Stations . | . . . . Recycling Units . | . . . . Scanalyzers . | . . . . Garrison Access . | . . . . Data Cores Recovered 2 | . . 2 . Used . | . . . . Hacking Detections 1 | . . 1 . Full Trace Events 1 | . . 1 . Feedback Events 1 | . . 1 . Corruption 1 | . . 1 . Feedback Blocked . | . . . . Robot Schematics Acquired . | . . . . Robots Built . | . . . . Authchips . | . . . . Time . | . . . . Total Robot Build Rating . | . . . . Part Schematics Acquired . | . . . . Parts Built . | . . . . Authchips . | . . . . Time . | . . . . Total Part Build Rating . | . . . . Parts Repaired . | . . . . Time . | . . . . Parts Recycled . | . . . . Recycled Matter . | . . . . Retrieved Matter . | . . . . Retrieved Components 3 | . 3 . . Parts Scanalyzed . | . . . . Part Schematics Acquired . | . . . . Parts Damaged . | . . . . Bothacking | -11 -10 -9 -9 ------------ Run | Yrd Mat Mat Min Used RIF Installer . | . . . . Robots Hacked . | . . . . Non-combat . | . . . . Combat . | . . . . Robot Hacks Applied . | . . . . Relay Couplers Released . | . . . . Fabnet Peak Effective % . | . . . . Robots Rewired . | . . . . Allies Hacked . | . . . . Hacks Repelled . | . . . . Allies | -11 -10 -9 -9 -------- Run | Yrd Mat Mat Min Total Allies . | . . . . Largest Group . | . . . . Highest-Rated Group . | . . . . Highest-Rated Ally . | . . . . Total Orders . | . . . . Ally Attacks . | . . . . Total Damage . | . . . . Kills . | . . . . Allies Corrupted . | . . . . Allies Melted . | . . . . Intel | -11 -10 -9 -9 ------- Run | Yrd Mat Mat Min Robot Analysis Total . | . . . . Derelict Logs Recovered . | . . . . Drone Launches . | . . . . Drone Recoveries . | . . . . Exploration | -11 -10 -9 -9 ------------- Run | Yrd Mat Mat Min Turns Passed 3166 | 72 355 2726 13 Spaces Moved 1513 | 50 225 1238 . Core 8 | 8 . . . Treads 553 | . . 553 . Legs . | . . . . Wheels 952 | 42 225 685 . Hover . | . . . . Flight . | . . . . Fastest Speed 50 | 50 100 115 . Average Speed 167 | 92 108 180 . Slowest Speed 400 | 100 130 400 . Overloaded Moves . | . . . . Propulsion Burnouts . | . . . . Robots Hopped . | . . . . Cave-ins Triggered . | . . . . Exploration Rate (%) 33 | 3 33 92 4 Regions Visited 3 Branch Regions 1 Pre-discovered Areas . | . . . . Known Exits Taken . | . . . . Unknown Exits Taken 3 | 1 1 1 . Scrap Searched . | . . . . Spaces Dug . | . . . . Terrain Destroyed . | . . . . Melee . | . . . . Projectile . | . . . . AOE . | . . . . Terrain Rammed . | . . . . Walls Destroyed . | . . . . Machines Disabled . | . . . . Actions | -11 -10 -9 -9 --------- Run | Yrd Mat Mat Min Total 1837 | 68 279 1485 5 Wait 36 | . 8 28 . Move 1510 | 49 224 1237 . Hop . | . . . . Pick Up 58 | 9 11 38 . Fast Attach 2 | . . 2 . Attach 29 | 6 3 20 . Detach 1 | . . 1 . Swap 9 | . 2 7 . Drop 18 | . 1 17 . Fire 174 | 4 30 135 5 Melee . | . . . . Ram . | . . . . Kick . | . . . . Crush . | . . . . Escape Stasis . | . . . . Rewire . | . . . . Trap . | . . . . Miscellaneous . | . . . . Route ------- -11/Scrapyard -10/Materials (discovered 3 exits: *Mat / Min x2) -9/Materials (discovered 4 exits: [*Mat x3] / [*Min]) -9/Mines History --------- Turn | Location | Event 11 | -11/Scrapyard | Discovered new exit (range 16) 73 | -11/Scrapyard | Entered Materials 204 | -10/Materials | Discovered new exit (range 20) 316 | -10/Materials | Build established: Mutant 323 | -10/Materials | Identified exit to Mines 356 | -10/Materials | Discovered new exit (range 15) 428 | -10/Materials | Entered another Materials area 428 | -9/Materials | Evolved 2 slots: Power x1, Utility x1 1077 | -9/Materials | Discovered new exit (range 10) 1324 | -9/Materials | Discovered new exit (range 5) 1535 | -9/Materials | Core integrity fell below 50% 1586 | -9/Materials | Lost 5 parts (1p1n1u2w) 2236 | -9/Materials | Discovered new exit (range 10) 2762 | -9/Materials | Core integrity fell below 20% 2784 | -9/Materials | Lost 3 parts (1p1n1w) 3109 | -9/Materials | Discovered new exit (range 14) 3154 | -9/Materials | Entered Mines 3167 | -9/Mines | Destroyed by L-31 Rogue with Katana Last Messages --------------- Dropped Imp. Assault Rifle. Dropped EMP Blaster. Acquired Field Laser. System corrupted: Heat flow error (+141). Acquired 30 matter. EXIT=FOUND O-16 Technician: "IFF HANDSHAKE FAILED. SECURING TERMINAL." O-16 Technician uses terminal to summon reinforcements. ALERT: Hostiles spotted, dispatching reinforcements to Terminal M004. O-16 Technician locks terminal. System corrupted: Heat flow error (+261). System corrupted: Heat flow error (+236). LOCATION=UNKNOWN GOAL=ESCAPE Lgt. Treads destroyed. Lgt. Deuterium Engine destroyed. Field Laser severed. Map ----- +----------------------------------------------------+ | ????????????????????????????????? | | ????????????????????????????????? | | ????????????????????????????????? | | ????????????????????????????????? | | ????????????????????????????????? | | ????????????????????????????????? | | ????????????????????????????????? | | ????????????????????????????????? | | ????????????????????????????????? | | ????????????????????????????????? | | ????????????????????????????????? | | ????????????????????????????????? | | ????????????????????????????????? | | ????????????????????????????????? | | ????????????????????????????????? | | ????????????????????????????????? | | ??###########???????????????????? | | ??###########???????????????????? | | ??## ##???????????????????? | | ??## """ ##???????????????????? | | ??## """ ##???????????????????? | | ??## """ ##???????????????????? | | ??## ### ##???????????????? | | ??## g ### ##???????????????? | | ??## l ##???????????????? | | ??## @ ##?###???????????????? | | ??## ##???????????????????? | | ??## ##???????????????????? | | ??###########???????????????????? | | ??###########???????????????????? | | ????????????????????????????????? | | | | | | | | | | | | | | | | | | | | | | | | | | | | | | | | | | | | | | | +----------------------------------------------------+ Best States ------------- Heat Dissipation 28 Energy Generation 23 Energy Capacity 460 Matter Stores 300 Matter Capacity 300 Sight Range 16 Terrain Scan Range 14 Terrain Scan Density 10 Armor Coverage 150 Core Shielding 20 Evasion (%) 40 Recoil Reduction 2 Item Schematics ----------------- None Robot Schematics ------------------ None Fabricated ------------ Nothing Alien Tech Used ----------------- None Achievements -------------- None Challenges ------------ None Game ------ Seed SlugRecyclingLance Manual? 0 Play Time 00:19:16 Cumulative 19.1 hours Start 2024.04.16 @ 23:16:29 End 2024.04.16 @ 23:35:39 Sessions 1 Manual Loads 0 Difficulty Rogue Special Mode None Game No. 45 Rogue 43 Adventurer 2 Explorer 0 Win Type - Total 0 Types 0/0/0/0/0/0/0/0/0 Lore% 17 Gallery% 26 Achievement% 19 Wizard Run 0 Options --------- Layout 1 ASCII 0 Keyboard 0 Movement Mouse Keybinds 0 Fullscreen 1 Font 16/SmallcapsGlow Map View 27x19 Zoom Use 75% Tactical HUD 0 Map Filters NONE Filters NONE Steam 1 RUN: 067ecf15-d1e2-4b88-b63e-aa1aa684fe87